{"text_format":"1","workbook":"xlsx","n_sheets":1,"sheets":["Подсчет"],"not_rendered":{"charts":0,"images":0,"macros":1,"external_links":1,"defined_names":2,"comments":1,"pivot_tables":0},"unopened":[],"bounds":{"document_bytes":16777216,"sheet_cells":100000,"rows_first":2000,"rows_last":500,"rows_between":2000,"halvings":0,"cell_chars":16384,"cell_head_chars":4096},"cells_cut":0,"cells_raw":0,"read":"whole","date_system":"1900"}

{"sheet":"Подсчет","index":0,"n_rows":650,"n_cols":8,"rows_kept":650,"cut":false,"hidden":false,"merged":[[366,1,368,1],[369,1,371,1],[402,1,404,1],[393,1,395,1],[411,1,412,1],[387,1,389,1],[372,1,374,1],[375,1,377,1],[378,1,380,1],[381,1,383,1],[384,1,386,1],[396,1,398,1],[390,1,392,1],[408,1,410,1],[405,1,407,1],[399,1,401,1],[351,3,359,3],[321,3,328,3],[331,3,339,3],[341,3,349,3],[363,1,365,1]]}
[]
[null,null,null,"Группирование(+) (-) должно работать"]
[null,null,null,"после включения защиты листа","в желтой колонке работает оператор"]
[null,null,null,null,"в ней данные должны меняться,всеостальные ячейки"]
[null,null,null,null,"должны быть защищены от изменений"]
[null,null,null,null,null,"кол-во","цена","сумма"]
["{\"#\",44a01d39-c2b6-4751-85e6-06fdc2f23043,32:91fc0030483270dd11dbab9bd5f5d003}",false,4,null,"Шкафы верхние 1-2 двери"]
["{\"#\",44a01d39-c2b6-4751-85e6-06fdc2f23043,32:a0180030483270dc11dd1d0a185a9644}",false,4,null,"шкафы верхние 1 дверь / выс.360"]
["{\"#\",44a01d39-c2b6-4751-85e6-06fdc2f23043,32:a0180030483270dc11dd1d0a185a9646}",false,4,"H360-300","ШКАФ ВЕРХ   300*360",null,670,{"$f":"G9*F9","v":0}]
["{\"#\",44a01d39-c2b6-4751-85e6-06fdc2f23043,32:a0180030483270dc11dd1d0a185a9648}",false,4,"H360-400","ШКАФ ВЕРХ   400*360",null,890,{"$f":"G10*F10","v":0}]
[null,null,null,"H360-450","ШКАФ ВЕРХ   450*360",null,930,0]
[null,null,null,"H360-500","ШКАФ ВЕРХ   500*360",null,1060,0]
["{\"#\",44a01d39-c2b6-4751-85e6-06fdc2f23043,32:a0180030483270dc11dd1d0a185a964a}",false,4,"H360-600V","ШКАФ ВЕРХ   600*360 ( 1 дв.вверх )",null,1300,0]
[null,null,null,"H360-600LP","ШКАФ ВЕРХ   600*360   2 дв",null,1300,0]
["{\"#\",44a01d39-c2b6-4751-85e6-06fdc2f23043,32:a0180030483270dc11dd1d0a185a964c}",false,4,"H360-700V","ШКАФ ВЕРХ   700*360 ( 1 дв.вверх )",null,1710,0]
[null,null,null,"H360-700LP","ШКАФ ВЕРХ   700*360   2 дв",null,1710,0]
["{\"#\",44a01d39-c2b6-4751-85e6-06fdc2f23043,32:a0180030483270dc11dd1d0a185a964e}",false,4,"H360-800V","ШКАФ ВЕРХ   800*360 ( 1 дв.вверх )",null,1830,0]
[null,null,null,"H360-800LP","ШКАФ ВЕРХ   800*360   2 дв",null,1830,0]
[null,null,null,"H360-900V","ШКАФ ВЕРХ   900*360 ( 1 дв.вверх)",null,2070,0]
[null,null,null,"H360-900LP","ШКАФ ВЕРХ   900*360 2 дв",null,2070,0]
[null,null,null,"H360-350","ШКАФ ВЕРХ   350*360",null,750,0]
[null,null,null,null,null,null,null,0]
[null,null,null,null,null,null,null,0]
[null,null,null,null,"шкафы верхние для 1-2 двери / выс.540"]
["{\"#\",44a01d39-c2b6-4751-85e6-06fdc2f23043,32:a0180030483270dc11dd1d0a185a9650}",false,4,"H540-300","ШКАФ ВЕРХ   300*540 1 дв",null,890,0]
["{\"#\",44a01d39-c2b6-4751-85e6-06fdc2f23043,32:a0180030483270dc11dd1d0a185a9652}",false,4,"H540-400","ШКАФ ВЕРХ   400*540 1 дв",null,1120,0]
["{\"#\",44a01d39-c2b6-4751-85e6-06fdc2f23043,32:a0180030483270dc11dd1d0a185a9654}",false,4,"H540-450","ШКАФ ВЕРХ   450*540 1 дв",null,1300,0]
["{\"#\",44a01d39-c2b6-4751-85e6-06fdc2f23043,32:a0180030483270dc11dd1d0a185a9656}",false,4,"H540-500","ШКАФ ВЕРХ   500*540 1 дв",null,1400,0]
["{\"#\",44a01d39-c2b6-4751-85e6-06fdc2f23043,32:a0180030483270dc11dd1d0a185a9658}",false,4,"H540-600LP","ШКАФ ВЕРХ   600*540 2 дв",null,1500,0]
[null,null,null,"H540-700V","ШКАФ ВЕРХ   700*540 ( 1 дв.вверх )",null,2070,0]
["{\"#\",44a01d39-c2b6-4751-85e6-06fdc2f23043,32:a0180030483270dc11dd1d0a185a965a}",false,4,"H540-700LP","ШКАФ ВЕРХ   700*540 2 дв",null,2070,0]
[null,null,null,"H540-800V","ШКАФ ВЕРХ   800*540 ( 1 дв.вверх)",null,2180,0]
["{\"#\",44a01d39-c2b6-4751-85e6-06fdc2f23043,32:a0180030483270dc11dd1d0a185a965c}",false,4,"H540-800LP","ШКАФ ВЕРХ   800*540 2 дв",null,2180,0]
[null,null,null,"H540-900V","ШКАФ ВЕРХ   900*540 ( 1дв.вверх )",null,2480,0]
[null,null,null,"H540-900LP","ШКАФ ВЕРХ   900*540 2 дв",null,2480,0]
[null,null,null,"H540-350","ШКАФ ВЕРХ   350*540 1 дв",null,1050,0]
[null,null,null,null,null,null,null,0]
[null,null,null,null,null,null,null,0]
[null,null,null,null,"шкафы верхние для 1-2 двери. / выс.576"]
[null,null,null,"H576-300","ШКАФ ВЕРХ   300*576 1 дв",null,900,0]
[null,null,null,"H576-400","ШКАФ ВЕРХ   400*576 1 дв",null,1220,0]
[null,null,null,"H576-450","ШКАФ ВЕРХ   450*576 1 дв",null,1400,0]
[null,null,null,"H576-500","ШКАФ ВЕРХ   500*576 1 дв",null,1500,0]
[null,null,null,"H576-600LP","ШКАФ ВЕРХ   600*576 2 дв",null,1600,0]
[null,null,null,"H576-700LP","ШКАФ ВЕРХ   700*576 2 дв",null,2170,0]
[null,null,null,"H576-800LP","ШКАФ ВЕРХ   800*576 2 дв",null,2280,0]
[null,null,null,"H576-LP","ШКАФ ВЕРХ   900*576 2 дв",null,2580,0]
[null,null,null,"H576-350","ШКАФ ВЕРХ   350*576 1 дв",null,1100,0]
[null,null,null,null,null,null,null,0]
[null,null,null,null,null,null,null,0]
[null,null,null,null,"шкафы верхние для 1-2 двери / выс.720"]
["{\"#\",44a01d39-c2b6-4751-85e6-06fdc2f23043,32:a0180030483270dc11dd1d0a185a9660}",false,4,"H720-300","ШКАФ ВЕРХ   300*720 1 дв",null,950,0]
[null,null,null,"H720-400","ШКАФ ВЕРХ   400*720 1 дв",null,1240,0]
[null,null,null,"H720-450","ШКАФ ВЕРХ   450*720 1 дв",null,1420,0]
[null,null,null,"H720-500","ШКАФ ВЕРХ   500*720 1 дв",null,1480,0]
[null,null,null,"H720-600LP","ШКАФ ВЕРХ   600*720 2 дв",null,1660,0]
[null,null,null,"H720-700LP","ШКАФ ВЕРХ   700*720 2 дв",null,2240,0]
[null,null,null,"H720-800LP","ШКАФ ВЕРХ   800*720 2 дв",null,2360,0]
[null,null,null,"H720-900LP","ШКАФ ВЕРХ   900*720 2 дв",null,2660,0]
[null,null,null,"H720-350","ШКАФ ВЕРХ   350*720 1 дв",null,1120,0]
[null,null,null,null,null,null,null,0]
[null,null,null,null,null,null,null,0]
[null,null,null,null,"шкафы верхние для 1-2 двери / выс.900"]
[null,null,null,"H900-300","ШКАФ ВЕРХ   300*900 1 дв",null,1180,0]
[null,null,null,"H900-400","ШКАФ ВЕРХ   400*900 1 дв",null,1480,0]
[null,null,null,"H900-450","ШКАФ ВЕРХ   450*900 1 дв",null,1600,0]
[null,null,null,"H900-500","ШКАФ ВЕРХ   500*900 1 дв",null,1650,0]
[null,null,null,"H900-600LP","ШКАФ ВЕРХ   600*900 2 дв",null,1890,0]
[null,null,null,"H900-700LP","ШКАФ ВЕРХ   700*900 2 дв",null,2710,0]
[null,null,null,"H900-800LP","ШКАФ ВЕРХ   800*900 2 дв",null,2830,0]
[null,null,null,"H900-900LP","ШКАФ ВЕРХ   900*900 2 дв",null,3010,0]
[null,null,null,"H900-350","ШКАФ ВЕРХ   350*900 1 дв",null,null,0]
[null,null,null,null,null,null,null,0]
[null,null,null,null,null,null,null,{"$f":"G74*F74","v":0}]
[null,null,null,null,"шкафы верхние для 1-2 двери / выс.1000"]
[null,null,null,"H1000-300","ШКАФ ВЕРХ   300*1000 1 дв",null,1690,0]
[null,null,null,"H1000-400","ШКАФ ВЕРХ   400*1000 1 дв",null,2150,0]
[null,null,null,"H1000-450","ШКАФ ВЕРХ   450*1000 1 дв",null,2280,0]
[null,null,null,"H1000-500","ШКАФ ВЕРХ   500*1000 1 дв",null,2410,0]
[null,null,null,"H1000-600LP","ШКАФ ВЕРХ   600*1000 2 дв",null,2690,0]
[null,null,null,"H1000-700LP","ШКАФ ВЕРХ   700*1000 2 дв",null,3850,0]
[null,null,null,"H1000-800LP","ШКАФ ВЕРХ   800*1000 2 дв",null,3990,0]
[null,null,null,"H1000-900LP","ШКАФ ВЕРХ   900*1000 2 дв",null,4150,0]
[null,null,null,"H1000-350","ШКАФ ВЕРХ   300*1000 1 дв",null,1850,0]
[null,null,null,null,null,null,null,0]
[null,null,null,null,null,null,null,0]
[null,null,null,null,"шкафы верхние скошенные  1 дверь"]
[null,null,null,"H576-300S","ШКАФ  ВЕРХ  СКОШ 1 ДВЕРНЫЙ  300*576",null,730,0]
[null,null,null,"H720-300S","ШКАФ  ВЕРХ  СКОШ 1 ДВЕРНЫЙ  300*720",null,940,0]
[null,null,null,"H900-300S","ШКАФ  ВЕРХ  СКОШ 1 ДВЕРНЫЙ  300*900",null,1180,0]
[null,null,null,"H1000-300S","ШКАФ  ВЕРХ  СКОШ 1 ДВЕРНЫЙ  300*1000",null,1700,0]
[null,null,null,null,null,null,null,0]
[null,null,null,null,null,null,null,0]
[null,null,null,null,"Шкафы верх.угловые"]
[null,null,null,"H576U-600/600","ШКАФ  ВЕРХ  УГЛОВОЙ   600*600*576",null,2360,0]
[null,null,null,"H720U-600/600","ШКАФ  ВЕРХ  УГЛОВОЙ   600*600*720",null,2660,0]
[null,null,null,"H900U-600/600","ШКАФ  ВЕРХ  УГЛОВОЙ   600*600*900",null,3130,0]
[null,null,null,"H1000U-600/600","ШКАФ  ВЕРХ  УГЛОВОЙ   600*600*1000",null,3420,0]
[null,null,null,"HU / ATIP","ШКАФ  ВЕРХ  УГЛОВОЙ не стандарт",null,4000,0]
[null,null,null,null,null,null,null,0]
[null,null,null,null,null,null,null,0]
[null,null,null,null,"Шкафы верхние угловые \"книжка\""]
[null,null,null,"H576UK-600/600","ШКАФ  ВЕРХ  УГЛОВОЙ  \"КНИЖКА\"  600*600*576",null,2560,0]
[null,null,null,"H720UK-600/600","ШКАФ  ВЕРХ  УГЛОВОЙ  \"КНИЖКА\"  600*600*720",null,2860,0]
[null,null,null,"H900UK-600/600","ШКАФ  ВЕРХ  УГЛОВОЙ  \"КНИЖКА\"  600*600*900",null,3330,0]
[null,null,null,"H1000UK-600/600","ШКАФ  ВЕРХ  УГЛОВОЙ  \"КНИЖКА\"  600*600*1000",null,3620,0]
[null,null,null,"HUK / ATIP","ШКАФ  ВЕРХ  УГЛОВОЙ  \"КНИЖКА\" не стандарт",null,4329,0]
[null,null,null,null,null,null,null,0]
[null,null,null,null,null,null,null,0]
[null,null,null,null,"Шкафы верх.проходные"]
[null,null,null,"H720P-600","ШКАФ  ВЕРХ  ПРОХОДНОЙ  600*720",null,1770,0]
[null,null,null,"H900P-600","ШКАФ  ВЕРХ  ПРОХОДНОЙ 600*900",null,2000,0]
[null,null,null,"H1000P-600","ШКАФ  ВЕРХ  ПРОХОДНОЙ  600*1000",null,2300,0]
[null,null,null,"H720P-700","ШКАФ  ВЕРХ  ПРОХОДНОЙ  700*720",null,2240,0]
[null,null,null,"H900P-700","ШКАФ  ВЕРХ  ПРОХОДНОЙ  700*900",null,2710,0]
[null,null,null,"H1000P-700","ШКАФ  ВЕРХ  ПРОХОДНОЙ  700*1000",null,3100,0]
[null,null,null,"H720P-800","ШКАФ  ВЕРХ  ПРОХОДНОЙ  800*720",null,2360,0]
[null,null,null,"H900P-800","ШКАФ  ВЕРХ  ПРОХОДНОЙ  800*900",null,2830,0]
[null,null,null,"H1000P-800","ШКАФ  ВЕРХ  ПРОХОДНОЙ  800*1000",null,3500,0]
[null,null,null,null,null,null,null,0]
[null,null,null,null,null,null,null,0]
[null,null,null,null,null,null,null,0]
[null,null,null,null,"Полки верхние открытые "]
[null,null,null,null,"полки верхние  ниша / выс. от 360 до 1000"]
[null,null,null,"H360N-150","ПОЛКА  ВЕРХ  НИША  150*360",null,620,0]
[null,null,null,"H360N-200","ПОЛКА  ВЕРХ  НИША  200*360",null,660,0]
[null,null,null,"H540N-150","ПОЛКА ВЕРХ  НИША  150*540",null,620,0]
[null,null,null,"H540N-200","ПОЛКА  ВЕРХ  НИША  200*540",null,730,0]
[null,null,null,"H576N-150","ПОЛКА  ВЕРХ  НИША  150*576",null,740,0]
[null,null,null,"H576N-200","ПОЛКА  ВЕРХ  НИША  200*576",null,930,0]
[null,null,null,"H720N-150","ПОЛКА  ВЕРХ  НИША  150*720",null,940,0]
[null,null,null,"H720N-200","ПОЛКА  ВЕРХ  НИША  200*720",null,1070,0]
[null,null,null,"H900N-150","ПОЛКА  ВЕРХ  НИША  150*900",null,990,0]
[null,null,null,"H900N-200","ПОЛКА  ВЕРХ  НИША  200*900",null,1270,0]
[null,null,null,"H1000N-150","ПОЛКА  ВЕРХ  НИША  150*1000",null,1250,0]
[null,null,null,"H1000N-200","ПОЛКА  ВЕРХ  НИША  200*1000",null,1500,0]
[null,null,null,null,null,null,null,0]
[null,null,null,null,null,null,null,{"$f":"G138*F138","v":0}]
[null,null,null,null,null,null,null,0]
[null,null,null,null,"Полки открытые концевые / выс.от 360 до 1000"]
[null,null,null,"H360K-200","ПОЛКА  ОТКР  КОНЦЕВАЯ  200*360",null,650,0]
[null,null,null,"H360K-300","ПОЛКА  ОТКР  КОНЦЕВАЯ  300*360",null,780,0]
[null,null,null,"H540K-200","ПОЛКА  ОТКР  КОНЦЕВАЯ  200*540",null,880,0]
[null,null,null,"H540K-300","ПОЛКА  ОТКР  КОНЦЕВАЯ  300*540",null,980,0]
[null,null,null,"H576K-200","ПОЛКА  ОТКР  КОНЦЕВАЯ  200*576",null,790,0]
[null,null,null,"H576K-300","ПОЛКА  ОТКР  КОНЦЕВАЯ  300*576",null,1100,0]
[null,null,null,"H720K-200","ПОЛКА  ОТКР  КОНЦЕВАЯ  200*720",null,1200,0]
[null,null,null,"H720K-300","ПОЛКА  ОТКР  КОНЦЕВАЯ  300*720",null,1350,0]
[null,null,null,"H900K-200","ПОЛКА  ОТКР  КОНЦЕВАЯ  200*900",null,1450,0]
[null,null,null,"H900K-300","ПОЛКА  ОТКР  КОНЦЕВАЯ  300*900",null,1500,0]
[null,null,null,"H1000K-200","ПОЛКА  ОТКР  КОНЦЕВАЯ  200*1000",null,1550,0]
[null,null,null,"H1000K-300","ПОЛКА  ОТКР  КОНЦЕВАЯ  300*1000",null,1650,0]
[null,null,null,null,null,null,null,0]
[null,null,null,null,null,null,null,0]
[null,null,null,null,null,null,null,0]
[null,null,null,null,"Столы 1,2 двери / выс. 850-900"]
[null,null,null,null,"столы 1,2 двери / выс. 850-900"]
[null,null,null,"S-300","СТОЛ  300*850 1 дв",null,1480,0]
[null,null,null,"S-350","СТОЛ  350*850 1 дв",null,1580,0]
[null,null,null,"S-400","СТОЛ  400*850 1 дв",null,1690,0]
[null,null,null,"S-450","СТОЛ  450*850 1 дв",null,1720,0]
[null,null,null,"S-500","СТОЛ  500*850 1 дв",null,1890,0]
[null,null,null,"S-600","СТОЛ  600*850 1-2 дв",null,2010,0]
[null,null,null,"S-700LP","СТОЛ  700*850 2 дв",null,2300,0]
[null,null,null,"S-800LP","СТОЛ  800*850 2 дв",null,2540,{"$f":"G166*F166","v":0}]
[null,null,null,"S-900LP","СТОЛ  900*850 2 дв",null,2710,{"$f":"G166*F166","v":0}]
[null,null,null,null,null,null,null,0]
[null,null,null,null,null,null,null,0]
[null,null,null,null,"столы 1,2 двери под врезную мойку / выс. 850-900"]
[null,null,null,"S-600M","СТОЛ  ПОД МОЙКУ  600*850",null,2010,0]
[null,null,null,"S-700M/LP","СТОЛ  ПОД МОЙКУ  700*850",null,2350,0]
[null,null,null,"S-800M/LP","СТОЛ  ПОД МОЙКУ  800*850",null,2570,0]
[null,null,null,"S-900M/LP","СТОЛ  ПОД МОЙКУ  900*850",null,2800,0]
[null,null,null,null,null,null,null,0]
[null,null,null,null,null,null,null,0]
[null,null,null,null,null,null,null,0]
[null,null,null,null,"столы 1 дверные с 1 ящиком / выс. 850-900"]
[null,null,null,"S-300/1","СТОЛ 1 ДВЕРН С 1 ЯЩИКОМ  300*850",null,1650,0]
[null,null,null,"S-350/1","СТОЛ 1 ДВЕРН С 1 ЯЩИКОМ  350*850",null,1750,0]
[null,null,null,"S-400/1","СТОЛ 1 ДВЕРН С 1 ЯЩИКОМ  400*850",null,1850,0]
[null,null,null,"S-450/1","СТОЛ 1 ДВЕРН С 1 ЯЩИКОМ  450*850",null,1950,0]
[null,null,null,"S-500/1","СТОЛ 1 ДВЕРН С 1 ЯЩИКОМ  500*850",null,1050,0]
[null,null,null,"S-600/1","СТОЛ 1 ДВЕРН С 1 ЯЩИКОМ  600*850",null,2120,0]
[null,null,null,null,null,null,null,0]
[null,null,null,null,null,null,null,0]
[null,null,null,null,null,null,null,0]
[null,null,null,null,"столы 2 дверные с 1 ящиком / выс. 850-900"]
[null,null,null,"S-600/2LP","СТОЛ 2 ДВЕРН С 1 ЯЩИКОМ  600*850",null,2120,0]
[null,null,null,"S-700/2LP","СТОЛ 2 ДВЕРН С 1 ЯЩИКОМ  700*850",null,2660,0]
[null,null,null,"S-800/2LP","СТОЛ 2 ДВЕРН С 1 ЯЩИКОМ  800*850",null,2830,0]
[null,null,null,"S-900/2LP","СТОЛ 2 ДВЕРН С 1 ЯЩИКОМ  900*850",null,3070,0]
[null,null,null,null,null,null,null,0]
[null,null,null,null,null,null,null,0]
[null,null,null,null,null,null,null,0]
[null,null,null,null,"столы-комоды 2-4 ящика / выс. 850-900"]
[null,null,null,"S-300K","СТОЛ - КОМОД 2-4 ЯЩИКА  300*850",null,1800,0]
[null,null,null,"S-350K","СТОЛ - КОМОД 2-4 ЯЩИКА  350*850",null,2000,0]
[null,null,null,"S-400K","СТОЛ - КОМОД 2-4 ЯЩИКА  400*850",null,2200,0]
[null,null,null,"S-450K","СТОЛ - КОМОД 2-4 ЯЩИКА  450*850",null,2400,0]
[null,null,null,"S-500K","СТОЛ - КОМОД 2-4 ЯЩИКА  500*850",null,2600,0]
[null,null,null,"S-600K","СТОЛ - КОМОД 2-4 ЯЩИКА  600*850",null,2800,0]
[null,null,null,"S-700K","СТОЛ - КОМОД 2-4 ЯЩИКА  700*850",null,3000,{"$f":"G202*F202","v":0}]
[null,null,null,"S-800K","СТОЛ - КОМОД 2-4 ЯЩИКА  800*850",null,3200,0]
[null,null,null,"S-900K","СТОЛ - КОМОД 2-4 ЯЩИКА  900*850",null,3400,0]
[null,null,null,null,"столы проходные / выс. 850-900"]
[null,null,null,"S-900P/300","СТОЛ  ПРОХОДНОЙ  300*900*850",null,2710,0]
[null,null,null,"S-1000P/400","СТОЛ  ПРОХОДНОЙ  400*1000*850",null,2950,0]
[null,null,null,"S-1000P/500","СТОЛ  ПРОХОДНОЙ  500*1000*850",null,3190,0]
[null,null,null,"S-1000P/600","СТОЛ  ПРОХОДНОЙ  600*1000*850",null,3540,0]
[null,null,null,null,"столы угловые / выс. 850-900"]
[null,null,null,"SU-900/900","СТОЛ  УГЛОВОЙ  900*900*850",null,2710,0]
[null,null,null,"SKU-900/900","СТОЛ УГЛОВОЙ  \" КНИЖКА \"  900*900*850",null,2930,0]
[null,null,null,"SU-ATIP","СТОЛ УГЛОВОЙ  не стандарт",null,3520,0]
[null,null,null,null,null,null,null,0]
[null,null,null,null,null,null,null,0]
[]
[null,null,null,null,"столы - ниша открытые"]
[null,null,null,"SN-150","СТОЛ - НИША  150*850",null,1360,0]
[null,null,null,"SN-200","СТОЛ - НИША  200*850",null,1630,0]
[null,null,null,null,"столы концевые скошенные и радиусные1 дверн"]
[null,null,null,"S-300S","СТОЛ КОНЦЕВОЙ СКОШЕН  1 дв  300*850",null,1600,0]
[null,null,null,"S-400S","СТОЛ  КОНЦЕВОЙ СКОШЕН  1 дв  400*850",null,1770,0]
[null,null,null,"S-500S","СТОЛ  КОНЦЕВОЙ СКОШЕН  1 дв  500*850",null,2010,0]
[null,null,null,"SR-300","СТОЛ  КОНЦЕВОЙ РАДИУСН 1 дв 300*850",null,1800,0]
[null,null,null,"SR-400","СТОЛ  КОНЦЕВОЙ РАДИУСН 1 дв 400*850",null,1900,0]
[null,null,null,null,null,null,null,0]
[null,null,null,null,null,null,null,0]
[null,null,null,null,null,null,null,0]
[null,null,null,null,null,null,null,0]
[null,null,null,null,"стол под врезную плиту с ящиком"]
[null,null,null,"S-600D","СТОЛ  ПОД  ВРЕЗН. ПЛИТУ  600*850",null,2250,0]
[null,null,null,null,null,null,null,0]
[null,null,null,null,null,null,null,0]
[null,null,null,null,"Консоли"]
[null,null,null,null,"консоли нижние концевые"]
[null,null,null,"SK-200","КОНСОЛЬ НИЖНЯЯ  200*850",null,1580,0]
[null,null,null,"SK-300","КОНСОЛЬ НИЖНЯЯ  300*850",null,1710,0]
[null,null,null,"SK-400","КОНСОЛЬ НИЖНЯЯ  400*850",null,1950,0]
[null,null,null,"K-200/2000","КОНСОЛЬ НИЖНЯЯ  200*2000",null,2580,0]
[null,null,null,"K-300/2000","КОНСОЛЬ НИЖНЯЯ  300*2000",null,3150,0]
[null,null,null,"K-400/2000","КОНСОЛЬ НИЖНЯЯ  400*2000",null,4010,0]
[null,null,null,null,null,null,null,0]
[null,null,null,null,null,null,null,0]
[null,null,null,null,null,null,null,0]
[null,null,null,null,"Пеналы"]
[null,null,null,null,"пеналы"]
[null,null,null,"P-300/3","ПЕНАЛ 3 дверный  300*560*2000",null,3600,0]
[null,null,null,"P-400/3","ПЕНАЛ 3 дверный  400*560*2000",null,4300,0]
[null,null,null,"P-500/3","ПЕНАЛ 3 дверный  500*560*2000",null,5100,0]
[null,null,null,"P-600/3","ПЕНАЛ 3 дверный  600*560*2000",null,5900,0]
[null,null,null,null,null,null,null,0]
[null,null,null,null,null,null,null,0]
[null,null,null,null,null,null,null,0]
[null,null,null,null,"Столешницы и стеновые панели"]
[null,null,null,null,"Толщина = 28 мм"]
[null,null,null,"ST-28/300","столешница матовая  28*300*3000 / м.пог",null,868,{"$f":"G256*F256","v":0}]
[null,null,null,"STG-28/300","столешница глянцевая  28*300*3000 / м.пог",null,1150,{"$f":"G257*F257","v":0}]
[null,null,null,"ST-28/400","столешница матовая  28*400*3000 / м.пог",null,1200,0]
[null,null,null,"STG-28/400","столешница глянцевая  28*400*3000 / м.пог",null,1500,0]
[null,null,null,"ST-28/600","столешница матовая  28*600*3000 / м.пог",null,1540,0]
[null,null,null,"STG-28/600","столешница глянцевая  28*600*3000 / м.пог",null,2000,0]
[null,null,null,"ST-28/800","столешница матовая  28*800*3000 / м.пог",null,2420,0]
[null,null,null,"STG-28/800","столешница глянцевая  28*800*3000 / м.пог",null,3150,0]
[null,null,null,"ST28-/900","столешница матовая  28*900*3000 / м.пог",null,2740,0]
[null,null,null,"STG-28/900","столешница глянцевая  28*900*3000 / м.пог",null,3560,0]
[null,null,null,"ST-28/1200","столешница матовая  28*1200*3000 / м.пог",null,3300,0]
[null,null,null,"STG-28/1200","столешница глянцевая  28*1200*3000 / м.пог",null,4300,0]
[]
[null,null,null,null,"Толщина = 38 мм"]
[null,null,null,"ST-38/300","столешница матовая  38*300*3000 / м.пог",null,1150,0]
[null,null,null,"STG-38/300","столешница глянцевая  38*300*3000 / м.пог",null,1350,0]
[null,null,null,"ST-38/400","столешница матовая  38*400*3000 / м.пог",null,1400,0]
[null,null,null,"STG-38/400","столешница глянцевая  38*400*3000 / м.пог",null,1850,0]
[null,null,null,"ST-36/600","столешница матовая  38*600*3000 / м.пог",null,2100,0]
[null,null,null,"STG-38/600","столешница глянцевая 38*600*3000 / м.пог",null,2700,0]
[null,null,null,"ST-38/800","столешница матовая  38*800*3000 / м.пог",null,3250,0]
[null,null,null,"STG-38/800","столешница глянцевая  38*800*3000 / м.пог",null,4250,0]
[null,null,null,"ST-38/900","столешница матовая  38*900*3000 / м.пог",null,3600,0]
[null,null,null,"STG-38/900","столешница глянцевая  38*900*3000 / м.пог",null,4660,0]
[null,null,null,"ST-38/1200","столешница матовая  38*1200*3000 / м.пог",null,4350,0]
[null,null,null,"STG-38/1200","столешница глянцевая  38*1200*3000 / м.пог",null,5650,0]
[]
[null,null,null,null,"Стеновые панели"]
[null,null,null,"STP-600","стеновая панель мат.  600*3000*4,5 / м.пог",null,1250,0]
[null,null,null,"STPG-600","стеновая панель глянц.  600*3000*4,5 / м.пог",null,1600,0]
[null,null,null,"STP-800","стеновая панель мат.  800*3000*4,5 / м.пог",null,1730,0]
[null,null,null,"STPG-800","стеновая панель глянц.  800*3000*4,5 / м.пог",null,2250,0]
[null,null,null,"STP-1200","стеновая панель мат.  1200*3000*4,5 / м.пог",null,2300,0]
[null,null,null,"STPG-1200","стеновая панель глянц.  1200*3000*4,5 / м.пог",null,2980,0]
[null,null,null,null,"Фасады"]
[null,null,null,null,"Фасады ВХЦ"]
[null,null,null,"10категория","Фасады ВХЦ категория 10 (группа 1) / м.кв",null,5500,{"$f":"G292*F292","v":0}]
[null,null,null,"бел. Кристалл,ваниль,","Фасады ВХЦ категория 10 (группа 10) / м.кв",null,6000,{"$f":"G293*F293","v":0}]
[null,null,null,"акация темн.,бук,коралл,","Фасады ВХЦ категория 10 (группа 15) / м.кв",null,6400,0]
[null,null,null,"сахара,св.дуб,синий,венге","Фасады ВХЦ категория 1 (группа 20) / м.кв",null,6600,0]
[null,null,null,"текст.бел,терракота,ясень,","Фасады ВХЦ категория 10 (НЕ СТАНД.) / м.кв",null,6600,0]
[null,null,null,"шоколад,акация темн.","Фасады ВХЦ категория 10 (группа 30) / м.кв",null,7500,0]
[null,null,null,null,"Фасады ВХЦ категория 10( группа 40) / м.кв",null,7500,0]
[null,null,null,null,"Фасады ВХЦ радиусные категория 10 / шт",null,4500,0]
[null,null,null,null,null,null,null,0]
[null,null,null,null,"Фасады ВХЦ категория 25"]
[null,null,null,"25категория","Фасады ВХЦ категория 25  группа 1 / м.кв",null,6300,{"$f":"G302*F302","v":0}]
[null,null,null,"античн. ваниль,ивори гор.,\nлаванда,графит,палисандр,","Фасады ВХЦ категория 25  группа 10 / м.кв",null,6900,{"$f":"G303*F303","v":0}]
[null,null,null,"дуб винтаж,дуб сантана,дуб,дуб антик,рябина бронз.,канад.клен,\n седой,ольха итал.,толедо","Фасады ВХЦ категория 25  группа 15 / м.кв",null,7180,0]
[null,null,null,"вишня красн.,тик,тик сер.,д.яблоня,\nольха красн.,атланта,орегон,груша,","Фасады ВХЦ категория 25  группа 20 / м.кв",null,7500,0]
[null,null,null,"вишня портофин.,алюминий,\nманхеттен,металик,орех ит.,орех темн,лиственница (бел,кор,тем)","Фасады ВХЦ категория 10 (НЕ СТАНД.) / м.кв",null,7560,0]
[null,null,null,"портуна (бел,кор,тем),флора,","Фасады ВХЦ категория 25  группа 30 / м.кв",null,8500,0]
[null,null,null,"металики (ночь,черн.,розов,салат,\nоранж,лимон,сирень,фиолет)","Фасады ВХЦ категория 25  группа 40 / м.кв",null,9100,0]
[null,null,null,"оранж,лимон,сирень,фиолет)","Фасады ВХЦ радиусные категория 10 / шт",null,4500,0]
[null,null,null,null,null,null,null,0]
[null,null,null,null,"Фасады ВХЦ категория 60 ( глянцы )"]
[null,null,null,"60 категория (глянцы)","Фасады ВХЦ категория 60  группа 1 / м.кв",null,6700,{"$f":"G312*F312","v":0}]
[null,null,null,"белый,черри,рубин-2,ваниль-2,","Фасады ВХЦ категория 60  группа 10 / м.кв",null,7380,{"$f":"G313*F313","v":0}]
[null,null,null,"капучино,черный,черный дождь,","Фасады ВХЦ категория 60  группа 15 / м.кв",null,7700,0]
[null,null,null,"белый дождь,черный иней,бел.иней","Фасады ВХЦ категория 60  группа 20 / м.кв",null,8100,0]
[null,null,null,"серый бриз,оранж бриз,олива,","Фасады ВХЦ категория 60 (НЕ СТАНД.) / м.кв",null,8100,0]
[null,null,null,"баклажан","Фасады ВХЦ категория 60  группа 30 / м.кв",null,8700,0]
[null,null,null,null,"Фасады ВХЦ категория 60  группа 40 / м.кв",null,9400,0]
[null,null,null,null,"Фасады ВХЦ радиусные категория 20 / шт",null,4500,0]
[null,null,null,null,null,null,null,0]
[null,null,null,null,"Карнизы и планки прикрытия освещения ВХЦ"]
[null,null,null,null,"Карниз нижний прямой 2000*55 мм / м.пог",null,350,{"$f":"G322*F322","v":0}]
[null,null,null,null,"Карниз верхний прямой 2000*70 мм / м.пог",null,450,{"$f":"G323*F323","v":0}]
[null,null,null,null,"Карниз нижний радиусный R300 / шт",null,1200,0]
[null,null,null,null,"Карниз верхний радиусный R300 (620*70 мм) / шт",null,1800,0]
[null,null,null,null,null,null,null,0]
[null,null,null,null,null,null,null,0]
[null,null,null,null,null,null,null,0]
[null,null,null,null,null,null,null,0]
[null,null,null,null,null,null,null,0]
[]
[null,null,null,null,null,null,null,0]
[null,null,null,null,null,null,null,0]
[null,null,null,null,null,null,null,0]
[null,null,null,null,null,null,null,0]
[null,null,null,null,null,null,null,0]
[null,null,null,null,null,null,null,0]
[null,null,null,null,null,null,null,0]
[null,null,null,null,null,null,null,0]
[null,null,null,null,null,null,null,0]
[null,null,null,null,"Фасады рамочные МДФ и ДСП"]
[null,null,null,null,"Фасады рамочные МДФ / м.кв",null,2000,0]
[null,null,null,null,"фасады ДСП / м.кв",null,1200,0]
[null,null,null,null,null,null,null,0]
[null,null,null,null,null,null,null,0]
[null,null,null,null,null,null,null,0]
[null,null,null,null,null,null,null,0]
[null,null,null,null,null,null,null,0]
[null,null,null,null,null,null,null,0]
[null,null,null,null,null,null,null,0]
[]
[null,null,null,null,null,null,null,0]
[null,null,null,null,null,null,null,0]
[null,null,null,null,null,null,null,0]
[null,null,null,null,null,null,null,0]
[null,null,null,null,null,null,null,0]
[null,null,null,null,null,null,null,0]
[null,null,null,null,null,null,null,0]
[null,null,null,null,null,null,null,0]
[null,null,null,null,null,null,null,0]
[]
[null,null,null,null,"фасады СИДАК"]
[null,null,null,null,"фасады Сидак категория 1"]
[null,"2 группа",null,"0 группа","фасады Сидак категория 1 группа 0 / м.кв",null,5600,{"$f":"G364*F364","v":0}]
[null,null,null,"1 группа","фасады Сидак категория 1 группа 1 / м.кв",null,6000,{"$f":"G365*F365","v":0}]
[null,null,null,"2 группа","фасады Сидак категория 1 группа 2 / м.кв",null,6600,{"$f":"G366*F366","v":0}]
[null,"3 группа",null,"3 группа","фасады Сидак категория 1 группа 3 / м.кв",null,7200,{"$f":"G367*F367","v":0}]
[]
[]
[null,"4 группа",null,null,"№ Цветов 1 категории "]
[null,null,null,null,"6,12,52,115,140,141,143,180,181,190,186,196,197,"]
[null,null,null,null,"198,199,700,701,703,704,705,707,708,709,711,712"]
[null,"5 группа",null,null,"фасады Сидак категория 2"]
[null,null,null,"0 группа","фасады Сидак категория 2 группа 0 / м.кв",null,5800,{"$f":"G374*F374","v":0}]
[null,null,null,"1 группа","фасады Сидак категория 2 группа 1 / м.кв",null,6400,{"$f":"G375*F375","v":0}]
[null,"0 группа",null,"2 группа","фасады Сидак категория 2 группа 2 / м.кв",null,6800,{"$f":"G376*F376","v":0}]
[null,null,null,"3 группа","фасады Сидак категория 2 группа 3 / м.кв",null,7400,{"$f":"G377*F377","v":0}]
[]
[null,"1 группа"]
[null,null,null,null,"№ Цветов  2  категории "]
[null,null,null,null,"38,39,56,89,90,116,127,129,168,170,171,172,"]
[null,"2 группа",null,null,"180,181,186,187,188,189,190,196,197,198,199,213"]
[null,null,null,null,"фасады Сидак категория 3"]
[null,null,null,"0 группа","фасады Сидак категория 3 группа 0 / м.кв",null,6600,{"$f":"G384*F384","v":0}]
[null,"3 группа",null,"1 группа","фасады Сидак категория 3 группа 1 / м.кв",null,7000,{"$f":"G385*F385","v":0}]
[null,null,null,"2 группа","фасады Сидак категория 3 группа 2 / м.кв",null,7400,{"$f":"G386*F386","v":0}]
[null,null,null,"3 группа","фасады Сидак категория 3 группа 3 / м.кв",null,8000,{"$f":"G387*F387","v":0}]
[null,"4 группа"]
[]
[null,null,null,null,"№ Цветов 3 категории"]
[null,"5 группа",null,null,"43,44,45,64,101,106,107,113,114,126,139,154,"]
[null,null,null,null,"155,156,158,159,160,163,164,165,169,173,182,"]
[null,null,null,null,"183,184,185,192,200,214"]
[null,"0 группа",null,null,"фасады Сидак категория 4"]
[null,null,null,"0 группа","фасады Сидак категория 4 группа 0 / м.кв",null,8300,{"$f":"G395*F395","v":0}]
[null,null,null,"1 группа","фасады Сидак категория 4 группа 1 / м.кв",null,8800,{"$f":"G396*F396","v":0}]
[null,"1 группа",null,"2 группа","фасады Сидак категория 4 группа 2 / м.кв",null,9200,{"$f":"G397*F397","v":0}]
[null,null,null,"3 группа","фасады Сидак категория 4 группа 3 / м.кв",null,10000,{"$f":"G398*F398","v":0}]
[]
[null,"2 группа"]
[null,null,null,null,"№ Цветов 4 категории "]
[null,null,null,null,"8,68,77,108,119,123,125,128,152,153,157,174,"]
[null,"3 группа",null,null,"175,176,177,178,179,193,194,195,204,210,216"]
[null,null,null,null,"фасады Сидак категория 5"]
[null,null,null,"0 группа","фасады Сидак категория 5 группа 0 / м.кв",null,10200,{"$f":"G405*F405","v":0}]
[null,"4 группа",null,"1 группа","фасады Сидак категория 5 группа 1 / м.кв",null,10600,{"$f":"G406*F406","v":0}]
[null,null,null,"2 группа","фасады Сидак категория 5 группа 2 / м.кв",null,11000,{"$f":"G407*F407","v":0}]
[null,null,null,"3 группа","фасады Сидак категория 5 группа 3 / м.кв",null,12100,{"$f":"G408*F408","v":0}]
[null,"5 группа"]
[]
[null,null,null,null,"№ Цветов 5 категории"]
[null,"0 группа",null,null,"30,97,207,208,"]
[null,null,null,null,"Акрилайн"]
[null,null,null,"Акрилайн","фасады акрилайн / м.кв",null,23600,{"$f":"G414*F414","v":0}]
[]
[null,null,null,null,"Фасады в ал. Рамке"]
[null,null,null,null,"профиль PF-01 / м.кв",null,2500,{"$f":"G417*F417","v":0}]
[null,null,null,null,"профиль PF-10 / м.кв",null,3800,{"$f":"G418*F418","v":0}]
[]
[]
[]
[]
[null,null,null,null,"Стекло и зеркало"]
[null,null,null,null,"Стекло"]
[null,null,null,null,"Стекло простое б/цв / м.кв",null,740,{"$f":"G425*F425","v":0}]
[null,null,null,null,"стекло бронза , серое / м.кв",null,1200,{"$f":"G426*F426","v":0}]
[null,null,null,null,"стекло САТИН бронза (хим.обр) / м.кв",null,1600,0]
[null,null,null,null,"стекло САТИН б/цв (хим.обр) / м.кв",null,1400,0]
[null,null,null,null,"стекло-DIAMOND бесцветное / м.кв",null,1160,0]
[null,null,null,null,"стекло- ШИНШИЛЛА бесцветное / м.кв",null,1500,0]
[null,null,null,null,"стекло-ШИНШИЛЛА бронза / м.кв",null,1600,0]
[null,null,null,null,"стекло-НИАГАРА бронза / м.кв",null,1650,0]
[null,null,null,null,"стекло-ТАФЕТА бронза / м.кв",null,1600,0]
[null,null,null,null,"стекло-Гранит белое / м.кв",null,2300,0]
[null,null,null,null,"стекло-Гранит бронза / м.кв",null,2600,0]
[null,null,null,null,"стекло-ОВЕС белое / м.кв",null,2300,0]
[null,null,null,null,"стекло-ОВЕС бронза / м.кв",null,2500,0]
[null,null,null,null,"стекло-ТЕРНОВНИК б/цв / м.кв",null,2300,0]
[null,null,null,null,"стекло-ТЕРНОВНИК бронза / м.кв",null,2500,0]
[null,null,null,null,"стекло- ПЛЕТЕНЬ белое / м.кв",null,2400,0]
[null,null,null,null,"стекло- NASHIJI б/цв / м.кв",null,1210,0]
[null,null,null,null,"стекло- JADE FLOVERS б/цв / м.кв",null,2000,0]
[null,null,null,null,"стекло- JADE FLOVERS серое / м.кв",null,2300,0]
[null,null,null,null,"стекло- LADY б/цв",null,2100,0]
[null,null,null,null,"стекло- DISSEMETRY STIPE б/цв / м.кв",null,2600,0]
[null,null,null,null,"стекло- GOLDEN YEARS б/цв / м.кв",null,2600,0]
[null,null,null,null,"стекло- GOLDEN YEARS бронза / м.кв",null,2800,0]
[null,null,null,null,"стекло-BIG SQUARE белое / м.кв",null,2200,0]
[null,null,null,null,"стекло-ДЕЛЬТА бронза / м.кв",null,1650,0]
[null,null,null,null,"стекло-ДЕЛЬТА б/цв / м.кв",null,1400,0]
[null,null,null,null,null,null,null,0]
[null,null,null,null,null,null,null,0]
[null,null,null,null,null,null,null,0]
[null,null,null,null,"стекло крашеное"]
[null,null,null,null,"стекло Лакобель темно - бордовое / м.кв",null,2600,{"$f":"G455*F455","v":0}]
[null,null,null,null,"стекло Лакобель насыщеный медный / м.кв",null,3000,{"$f":"G456*F456","v":0}]
[null,null,null,null,"стекло Лакобель PURE WHITE / м.кв",null,3000,0]
[null,null,null,null,"стекло Лакобель черный класическ. / м.кв",null,2600,0]
[null,null,null,null,"стекло Лакобель не яркий белый / м.кв",null,2600,0]
[null,null,null,null,"стекло Лакобель насыщеный золотой / м.кв",null,3000,0]
[null,null,null,null,"стекло Лакобель бежевый класический / м.кв",null,2600,0]
[null,null,null,null,"стекло Лакобель светло-бежевый / м.кв",null,2600,0]
[null,null,null,null,"стекло Лакобель ярко-зеленый / м.кв",null,2600,0]
[null,null,null,null,"стекло Лакобель темно-коричневый / м.кв",null,2600,0]
[null,null,null,null,"стекло Лакобель серый металик / м.кв",null,2600,0]
[null,null,null,null,"стекло Лакобель светло-коричневый / м.кв",null,2600,0]
[null,null,null,null,"стекло Лакомат / м.кв",null,2500,0]
[null,null,null,null,null,null,null,0]
[null,null,null,null,null,null,null,0]
[null,null,null,null,"Зеркало"]
[null,null,null,null,"зеркало серебро / м.кв",null,1200,{"$f":"G471*F471","v":0}]
[null,null,null,null,"зеркало бронза / м.кв",null,1900,{"$f":"G472*F472","v":0}]
[null,null,null,null,"зеркало ГРАФИТ / м.кв",null,2000,0]
[null,null,null,null,"зеркало JADE FLOVERS / м.кв",null,4100,0]
[null,null,null,null,"зеркало ICE CRACK бронза / м.кв",null,4400,0]
[null,null,null,null,"зеркало ICE CRACK белое / м.кв",null,4200,0]
[null,null,null,null,"зеркало САТИН белое / м.кв",null,1900,0]
[null,null,null,null,"зеркало САТИН бронза / м.кв",null,2000,0]
[null,null,null,null,"зеркало JADE CURTAIN серое / м.кв",null,4100,0]
[null,null,null,null,"зеркало ГЕОМЕТРИЯ белое / м.кв",null,3200,0]
[null,null,null,null,"зеркало ЦВЕТЫ белое / м.кв",null,3200,0]
[null,null,null,null,"зеркало ЦВЕТЫ бронза / м.кв",null,3600,0]
[null,null,null,null,"зеркало ГЕОМЕТРИЯ бронза / м.кв",null,3600,0]
[null,null,null,null,null,null,null,0]
[null,null,null,null,null,null,null,0]
[null,null,null,null,null,null,null,0]
[]
[null,null,null,null,"Комплектующие"]
[null,null,null,null,"Плинтус,цоколь,кант,стыковочн.планки"]
[null,null,null,null,"плинтус пластик / м.пог.",3,150,{"$f":"G490*F490","v":450}]
[null,null,null,null,"заглушки на плинтус пластик / компл.",1,80,{"$f":"G491*F491","v":80}]
[null,null,null,null,"плинтус  пластиковый металик / м.пог",null,130,0]
[null,null,null,null,"заглушки на плинтус металик / компл",null,50,0]
[null,null,null,null,"плинтус аллюминиевый рифленный / м.пог",null,240,0]
[null,null,null,null,"заглушки на аллюмин плинтус/ компл",null,50,0]
[null,null,null,null,"стыковочная планка для столешницы 28мм / шт",null,200,0]
[null,null,null,null,"стыковочная планка для столешницы 38мм / шт",null,320,0]
[null,null,null,null,"торцевая планка для столешницы 28мм / шт",null,170,0]
[null,null,null,null,"торцевая планка для столешницы 38мм / шт",null,270,0]
[null,null,null,null,"стыковочная планка для стен панели / шт",null,240,0]
[null,null,null,null,"цоколь пластиковый металик h100мм / м.пог",null,450,0]
[null,null,null,null,"цоколь ДСП с уплотнителем / м.пог",null,350,0]
[null,null,null,null,"кант врезной древесные цвета / м.пог",null,100,0]
[null,null,null,null,"кант врезной  цвет металик  / м.пог",null,120,0]
[null,null,null,null,null,null,null,0]
[null,null,null,null,null,null,null,0]
[null,null,null,null,null,null,null,0]
[null,null,null,null,"барные комплектующие"]
[null,null,null,null,"рампа барная  - козырек ( ДСП ) / м.кв",null,700,{"$f":"G509*F509","v":0}]
[null,null,null,null,"труба барная хром  3000*50 / м.пог",null,530,{"$f":"G510*F510","v":0}]
[null,null,null,null,"комплект креплений для трубы барной 3000*50 / шт",null,900,0]
[null,null,null,null,"крепление d 50мм полок хром (компл.на 1 полку) / шт",null,200,0]
[null,null,null,null,"крепление полок  хром (компл.на 2 полки) / шт",null,280,0]
[null,null,null,null,"полка для бокалов хром / шт",null,850,0]
[null,null,null,null,"полка центральная D350",null,950,0]
[null,null,null,null,"полка центральная D400",null,1150,0]
[null,null,null,null,"полка центральная высокая D350",null,1500,0]
[null,null,null,null,"полка боковая D350",null,1700,0]
[null,null,null,null,"полка боковая D450",null,1900,0]
[null,null,null,null,"нога для стола хром  60*710 / шт",null,600,0]
[null,null,null,null,"нога под барную стойку хром  60*820 / шт",null,700,0]
[null,null,null,null,"нога под барную стойку хром  60*1100 / шт",null,800,0]
[null,null,null,null,"реллинг d16 хром / м.пог",null,280,0]
[null,null,null,null,"угол 90 к рейлингу / шт",null,130,0]
[null,null,null,null,"втулка соеденительная для угла 90 /шт",null,20,0]
[null,null,null,null,"опора рейлинга хром / шт",null,120,0]
[null,null,null,null,"заглушка рейлинга хром / шт",null,50,0]
[null,null,null,null,"штанга d25 хром / м.пог",null,200,0]
[null,null,null,null,"фланец для штанги d25 хром / шт",null,60,0]
[null,null,null,null,null,null,null,0]
[null,null,null,null,null,null,null,0]
[null,null,null,null,null,null,null,0]
[null,null,null,null,"навесные элементы на рейлинг"]
[null,null,null,null,"крючок одинарный для рейлинга хром / шт",null,40,{"$f":"G534*F534","v":0}]
[null,null,null,null,"крючок двойной для рейлинга хром / шт",null,90,{"$f":"G535*F535","v":0}]
[null,null,null,null,"полка навесная одинарная мини / шт",null,350,0]
[null,null,null,null,"полка навесная для специй / шт",null,400,0]
[null,null,null,null,"полка навесная угловая /шт",null,650,0]
[null,null,null,null,"полка навесная одинарная большая / шт",null,480,0]
[null,null,null,null,null,null,null,0]
[null,null,null,null,null,null,null,0]
[null,null,null,null,null,null,null,0]
[null,null,null,null,"наполнение шкафов"]
[null,null,null,null,"сушилка белая 400 / шт ",null,250,{"$f":"G544*F544","v":0}]
[null,null,null,null,"сушилка белая 500 / шт ",null,300,{"$f":"G545*F545","v":0}]
[null,null,null,null,"сушилка белая 600 / шт ",1,350,350]
[null,null,null,null,"сушилка белая 800 / шт ",null,370,0]
[null,null,null,null,"сушилка хром с выдв.поддоном 400 / шт",null,780,0]
[null,null,null,null,"сушилка хром с выдв.поддоном 500 / шт",null,990,0]
[null,null,null,null,"сушилка хром с выдв.поддоном 600 / шт",null,1200,0]
[null,null,null,null,"сушилка хром с выдв.поддоном 700 / шт",null,1300,0]
[null,null,null,null,"сушилка хром с выдв.поддоном 800 / шт",null,1400,0]
[null,null,null,null,"сушилка хром с выдв.поддоном 900 / шт",null,1500,0]
[null,null,null,null,"емкость для приборов в стол 300-350 / шт",null,400,0]
[null,null,null,null,"емкость для приборов в стол 400-450 / шт",null,450,0]
[null,null,null,null,"емкость для приборов в стол 500-550 / шт",null,500,0]
[null,null,null,null,"емкость для приборов в стол 600 / шт",null,600,0]
[null,null,null,null,"бутылочница 2 полки(150) / шт",null,2350,0]
[null,null,null,null,"бутылочница 2 полки(200) / шт",null,2750,0]
[null,null,null,null,"корзина выдвижная (300) / шт",null,2970,0]
[null,null,null,null,"корзина выдвижная (400) / шт",null,3800,0]
[null,null,null,null,"выдв.сист.волшебный уголок / шт",null,14100,0]
[null,null,null,null,"выдв.сист.карусель / шт",null,6200,0]
[null,null,null,null,"ведро для мусора на дверь / шт",null,1900,0]
[null,null,null,null,"контейнер для мусора выкатной двойной / шт",null,2200,0]
[null,null,null,null,null,null,null,0]
[null,null,null,null,null,null,null,0]
[null,null,null,null,null,null,null,0]
[null,null,null,null,"мойки врезные"]
[null,null,null,null,"мойка врезная UКINOX круглая FA490 / шт",1,3000,{"$f":"G570*F570","v":3000}]
[null,null,null,null,"мойка врезная UКINOX круглая FA510 / шт",null,3300,{"$f":"G571*F571","v":0}]
[null,null,null,null,"мойка овал UKINOX FA577.447 чаша лев. / шт",null,3500,0]
[null,null,null,null,"мойка овал UKINOX FA577.447 чаша прав. / шт",null,3500,0]
[null,null,null,null,"мойка угловая UKINOX  COP776.507GW / шт",null,6300,0]
[null,null,null,null,"мойка прямоуг. UKINOX CLM760.435 чаша лев./ шт",null,2800,0]
[null,null,null,null,"мойка прямоуг. UKINOX CLM760.435 чаша прав./ шт",null,2800,0]
[null,null,null,null,"мойка квадратная UKINOX CLM 480.480",null,2300,0]
[null,null,null,null,null,null,null,0]
[null,null,null,null,null,null,null,0]
[null,null,null,null,"подъемные механизмы для дверей"]
[null,null,null,null,"газлифт / шт",null,160,{"$f":"G581*F581","v":0}]
[null,null,null,null,"подъемный механизм на 1 дверь / шт",null,4100,0]
[null,null,null,null,"подъемный механизм HWL на 2 двери / шт",null,5600,0]
[null,null,null,null,null,null,null,0]
[null,null,null,null,null,null,null,0]
[null,null,null,null,null,null,null,0]
[null,null,null,null,"системы выдвижения"]
[null,null,null,null,"направляющие полн. выдвиж. (шарик.) 300 / компл",null,350,{"$f":"G588*F588","v":0}]
[null,null,null,null,"направляющие полн. выдвиж. (шарик.) 350 / компл",null,400,{"$f":"G589*F589","v":0}]
[null,null,null,null,"направляющие полн. выдвиж. (шарик.) 400 / компл",null,450,0]
[null,null,null,null,"направляющие полн. выдвиж. (шарик.) 450 / компл",null,500,0]
[null,null,null,null,"направляющие полн. выдвиж. (шарик.) 500 / компл",null,550,0]
[null,null,null,null,"направляющие полн. выдвиж. (шарик.) 550 / компл",null,600,0]
[null,null,null,null,"система выдв METABOX 85*500 / компл",null,450,0]
[null,null,null,null,"система выдв METABOX 150*500 / компл",null,500,0]
[null,null,null,null,"система выдв METABOX + рейлинг 85*500 / компл",null,650,0]
[null,null,null,null,"система выдв METABOX + рейлинг 150*500 / компл",null,700,0]
[null,null,null,null,"система выдв с доводчиком TANDEMBOX / компл",null,2000,0]
[null,null,null,null,"система выдв с доводч.TANDEMBOX + рейлинг / компл",null,2200,0]
[null,null,null,null,null,null,null,0]
[null,null,null,null,null,null,null,0]
[null,null,null,null,null,null,null,0]
[null,null,null,null,"дополнительные элементы"]
[null,null,null,null,"амортизатор врезной / шт",null,130,{"$f":"G604*F604","v":0}]
[null,null,null,null,"петля простая 110 градусов / шт",null,75,{"$f":"G605*F605","v":0}]
[null,null,null,null,"петля \"Трансформер\" / шт",null,140,0]
[null,null,null,null,"петля с доводчиком / шт",null,220,0]
[null,null,null,null,"ножка металлическая хром h100-150 / шт",null,300,0]
[null,null,null,null,"ножка металлическая мат.хром h100-150 / шт",null,300,0]
[null,null,null,null,"ножки пластмассовые h100 - 120 / шт   ",null,40,0]
[null,null,null,null,"пеликан  большой  для полки  хром  ",null,250,0]
[null,null,null,null,"пеликан средний  для полки  хром. ",null,200,0]
[null,null,null,null,null,null,null,0]
[null,null,null,null,null,null,null,0]
[null,null,null,null,null,null,null,0]
[null,null,null,null,null,null,null,0]
[null,null,null,null,null,null,null,0]
[null,null,null,"Заполнить =>","Ручки релленг L200",null,120,{"$f":"G618*F618","v":0}]
[null,null,null,null,null,null,null,{"$f":"G619*F619","v":0}]
[null,null,null,null,null,null,null,{"$f":"G620*F620","v":0}]
[null,null,null,null,"электро-оборудование"]
[null,null,null,null,"Светильник врезн. 3шт.(хром,золото) комплект / шт",null,900,{"$f":"G622*F622","v":0}]
[null,null,null,null,"Светильник врезн. 4шт.(хром,золото) комплект / шт",null,1200,{"$f":"G623*F623","v":0}]
[null,null,null,null,"Светильник врезн. 5шт.(хром,золото) комплект / шт",null,1300,0]
[null,null,null,null,"Лампа треугольник с выключ. (хром)  ",null,1500,0]
[null,null,null,null,"Светильник дневного света L 450 / шт",null,520,0]
[null,null,null,null,"Светильник дневного света L 550 / шт",null,580,0]
[null,null,null,null,"Светильник дневного света L 800 / шт",null,820,0]
[null,null,null,null,"Светильник дневного света L 300 / шт",null,420,0]
[null,null,null,null,"Трансформатор ( на 3- 4 лампы)",null,300,0]
[null,null,null,null,null,null,null,0]
[null,null,null,null,null,null,null,0]
[null,null,null,null,null,null,null,0]
[]
[]
[]
[]
[]
[]
[]
[]
[null,null,null,null,"Шкафы"]
[null,null,null,null,"верхние"]
[null,null,null,"Н /300L","Шкаф верхний - 720*300 1 дв.лев",null,500,{"$f":"G644*F644","v":0}]
[null,null,null,"Н /300P","Шкаф верхний - 720*300 1 дв.прав",null,600,{"$f":"G645*F645","v":0}]
[null,null,null,"Н /400L","Шкаф верхний - 720*400 1 дв.лев",null,700,0]
[null,null,null,"Н /400P","Шкаф верхний - 720*400 1 дв.прав",1,800,800]
[null,null,null,null,"Полки - ниши открытые"]
[null,null,null,"HN /720*150","Полка открытая - 720*150 ",null,100,{"$f":"G649*F649","v":0}]
[null,null,null,"HN /720*200","Полка открытая - 720*200",null,200,{"$f":"G650*F650","v":0}]